bitfinex-derivatives/quotes_BTCF0:USTF0_20251120
["timestamp","ask_amount","ask_price","bid_price","bid_amount"]
[1763645488312,0.0108268,92459.0,92448.0,0.00016222]
[1763645488510,0.0108282,92447.0,92375.0,0.0541827]
[1763645488721,0.28408129,92444.0,92409.0,0.0108325]
[1763645488924,0.114,92458.0,92370.0,0.28408129]
[1763645488925,0.28408129,92440.0,92410.0,0.00219803]
[1763645489219,0.114,92458.0,92410.0,0.00219803]
[1763645489620,0.00016232,92443.0,92425.0,0.00016232]
[1763645489823,0.02959909,92535.0,92425.0,0.00016232]
[1763645489824,0.0108204,92513.0,92447.0,0.0541405]
[1763645490128,0.6826,92544.0,92430.0,0.28408129]
[1763645490129,0.0108195,92521.0,92454.0,0.0108272]
[1763645490330,0.28408129,92530.0,92455.0,0.00219803]
[1763645490515,0.28408129,92470.0,92455.0,0.00219803]
[1763645490824,0.28408129,92470.0,92397.0,0.0541697]
[1763645490825,0.28408129,92470.0,92453.0,0.00016222]
[1763645491023,0.28408129,92470.0,92404.0,0.00219803]
[1763645491329,0.00016222,92446.0,92428.0,0.00016222]
[1763645491621,8.224e-05,92445.0,92429.0,0.00219803]
[1763645492011,8.224e-05,92445.0,92430.0,0.0108301]
[1763645492214,8.224e-05,92445.0,92431.0,0.00219803]
[1763645492424,8.224e-05,92445.0,92442.0,0.0108287]
[1763645492617,0.0108244,92479.0,92444.0,0.00219803]
[1763645492817,0.28408129,92490.0,92444.0,0.00219803]
[1763645493021,0.0108254,92471.0,92444.0,0.00219803]
[1763645493324,0.28408129,92470.0,92444.0,0.00219803]
[1763645493522,0.00016222,92466.0,92448.0,0.00016222]
[1763645493723,0.28408129,92460.0,92419.0,0.0108313]
[1763645493924,0.0541228,92478.0,92349.0,0.0108396]
[1763645493925,0.28408129,92440.0,92360.0,0.28408129]
[1763645494123,0.28408129,92420.0,92341.0,0.11396]
[1763645494318,0.28408129,92400.0,92361.0,0.00219803]
[1763645494524,0.0108365,92376.0,92361.0,0.00219803]
[1763645494726,0.00016231,92378.0,92359.0,0.00016231]
[1763645495028,0.00016231,92378.0,92331.0,0.0108417]
[1763645495329,0.00016231,92378.0,92332.0,0.00219803]
[1763645495628,0.00016231,92378.0,92332.0,0.01303963]
[1763645496017,0.00016231,92378.0,92346.0,0.00016241]
[1763645496218,0.0108365,92376.0,92347.0,0.00219803]
[1763645496428,0.00016231,92378.0,92347.0,0.00219803]
[1763645496612,0.00016231,92378.0,92346.0,0.00016241]
[1763645496613,0.0108376,92367.0,92346.0,0.00016241]
[1763645496816,0.00016231,92378.0,92346.0,0.00236044]
[1763645497015,0.00016231,92378.0,92311.0,1.5]
[1763645497226,0.33834844,92350.0,92311.0,1.5]
[1763645497429,0.33834844,92350.0,92327.0,0.00219803]
[1763645497633,0.33834844,92340.0,92293.0,0.0108461]
[1763645497926,0.01084,92346.0,92307.0,0.0108445]
[1763645498134,0.0541846,92373.0,92307.0,0.0108445]
[1763645498135,0.0001625,92326.0,92308.0,0.00219803]
[1763645498331,0.0001625,92326.0,92308.0,0.00230769]
[1763645498525,0.0001625,92326.0,92319.0,0.00011093]
[1763645498723,0.0001625,92326.0,92325.0,0.00219803]
[1763645499920,0.0001625,92326.0,92325.0,0.01304043]
[1763645500233,0.33834844,92350.0,92319.0,0.00011093]
[1763645500421,0.0108406,92341.0,92320.0,0.00219803]
[1763645500622,0.0108384,92359.0,92326.0,0.0108423]
[1763645500826,0.0108409,92338.0,92327.0,0.00219803]
[1763645501031,1e-08,92342.0,92341.0,0.0108405]
[1763645501222,1e-08,92342.0,92326.0,0.0542116]
[1763645501223,0.0108352,92387.0,92342.0,0.00219803]
[1763645501418,0.0108361,92379.0,92344.0,0.0108402]
[1763645501723,0.010837,92372.0,92345.0,0.01303813]
[1763645501918,0.002,92359.0,92345.0,0.00219803]
[1763645502120,0.002,92359.0,92357.0,0.0108386]
[1763645502431,0.002,92359.0,92358.0,0.00219803]
[1763645502630,0.0541649,92406.0,92358.0,0.00219803]
[1763645502935,0.001,92379.0,92331.0,0.0108416]
[1763645503131,0.0108389,92355.0,92332.0,0.00219803]
[1763645503629,0.001,92379.0,92332.0,0.00219803]
[1763645503826,0.0108402,92345.0,92332.0,0.00219803]
[1763645504021,0.0001624,92365.0,92332.0,0.00219803]
[1763645504527,0.0108393,92352.0,92332.0,0.00219803]
[1763645504723,0.001,92359.0,92332.0,0.00219803]
[1763645504929,0.0108412,92336.0,92332.0,0.00219803]
[1763645505231,0.0001624,92343.0,92291.0,1.5]
[1763645505533,0.0108426,92324.0,92291.0,1.5]
[1763645505722,0.0108449,92304.0,92258.0,0.0108502]
[1763645505922,0.33834844,92340.0,92279.0,0.0108478]
[1763645506228,0.68288,92378.0,92243.0,0.0542601]
[1763645506229,0.0001625,92319.0,92300.0,0.0001625]
[1763645506424,0.0001625,92319.0,92314.0,0.0108436]
[1763645506622,0.0001625,92319.0,92318.0,0.00219803]
[1763645507028,0.0001625,92319.0,92318.0,0.40219803]
[1763645507029,0.0002391,92319.0,92318.0,0.40219803]
[1763645507222,0.04724,92382.0,92318.0,0.40219803]
[1763645507422,0.001,92343.0,92333.0,0.0108414]
[1763645507627,0.001,92343.0,92292.0,0.0542312]
[1763645507628,0.001,92343.0,92334.0,0.00219803]
[1763645508026,0.0108401,92345.0,92334.0,0.00219803]
[1763645508224,0.0108415,92333.0,92329.0,0.00016241]
[1763645508429,0.33834844,92350.0,92296.0,0.00219803]
[1763645508430,0.00016241,92340.0,92296.0,0.00219803]
[1763645508628,0.0108425,92325.0,92296.0,0.00219803]
[1763645508936,0.33834844,92330.0,92296.0,0.00219803]
[1763645509131,0.0108457,92298.0,92296.0,0.00219803]
[1763645509320,0.0108462,92293.0,92288.0,0.0001625]
[1763645509528,7.396e-05,92292.0,92288.0,0.00236053]
[1763645510330,7.396e-05,92292.0,92289.0,0.0108466]
[1763645510525,0.0001625,92306.0,92292.0,0.0108462]
[1763645510833,0.0001625,92306.0,92305.0,0.00219803]
[1763645512126,0.0001625,92306.0,92288.0,0.0001625]
[1763645512329,0.010845,92303.0,92289.0,0.00219803]
[1763645512633,0.0001625,92306.0,92289.0,0.00219803]
[1763645512834,0.0108451,92302.0,92289.0,0.00219803]
[1763645513227,0.0001625,92306.0,92289.0,0.00219803]
[1763645513627,0.0110072,92306.0,92289.0,0.00219803]
[1763645513832,0.0001625,92306.0,92294.0,0.0108459]
[1763645514036,0.0001625,92306.0,92305.0,0.001]
[1763645514236,0.0108466,92289.0,92288.0,0.0001625]
[1763645514438,0.33834844,92300.0,92262.0,7.826e-05]
[1763645514640,0.33834844,92300.0,92263.0,0.00219803]
[1763645515029,0.01084,92346.0,92300.0,0.0108453]
[1763645515229,0.010842,92329.0,92304.0,0.0108448]
[1763645515429,0.0001625,92326.0,92307.0,0.0001625]
[1763645515738,0.0001625,92326.0,92308.0,0.00219803]
[1763645515944,0.0108432,92319.0,92308.0,0.00219803]
[1763645516138,0.0110048,92326.0,92309.0,0.0108442]
[1763645516443,0.0108436,92315.0,92310.0,0.00219803]
[1763645516637,0.0108443,92310.0,92307.0,0.0001625]
[1763645516833,0.0108429,92322.0,92292.0,0.0108462]
[1763645517036,0.33834844,92330.0,92293.0,0.00219803]
[1763645517227,0.0542061,92336.0,92293.0,0.00219803]
[1763645517228,0.054198,92350.0,92293.0,0.00219803]
[1763645517535,0.0108422,92327.0,92293.0,0.00219803]
[1763645517740,0.0108451,92302.0,92301.0,0.00010978]
[1763645518334,0.010846,92295.0,92276.0,0.0108481]
[1763645518545,0.0108457,92297.0,92277.0,0.00219803]
[1763645518737,0.33834844,92310.0,92277.0,0.00219803]
[1763645519037,0.002,92302.0,92277.0,0.00219803]
[1763645519239,0.0001625,92299.0,92279.0,0.0108478]
[1763645519442,0.0108473,92284.0,92280.0,0.00219803]
[1763645519842,0.0108456,92298.0,92231.0,0.0108533]
[1763645520043,0.0001625,92299.0,92263.0,0.00219803]
[1763645520233,0.0108456,92298.0,92263.0,0.00219803]
[1763645520435,0.0001625,92299.0,92263.0,0.00219803]
[1763645520436,0.0108495,92265.0,92263.0,0.00219803]
[1763645520929,0.0001625,92273.0,92263.0,0.01304763]
[1763645521133,0.0001625,92273.0,92263.0,0.00219803]
[1763645521335,0.0001625,92273.0,92267.0,0.0108492]
[1763645521545,0.0001625,92273.0,92272.0,0.00219803]
[1763645521750,0.0001625,92273.0,92197.0,0.0108574]
[1763645521751,0.0108516,92247.0,92197.0,0.0108574]
[1763645521937,0.0108513,92250.0,92197.0,0.0108574]
[1763645522246,0.0108486,92272.0,92263.0,0.001]
[1763645522542,0.0001625,92273.0,92264.0,0.00219803]
[1763645522739,0.0001625,92273.0,92263.0,0.001]
[1763645522740,0.0108496,92264.0,92263.0,0.001]
[1763645522942,0.0001625,92273.0,92206.0,0.00040454]
[1763645522943,0.0108514,92249.0,92206.0,0.00040454]
[1763645523141,0.0108547,92221.0,92206.0,0.00040454]
[1763645523456,0.0108559,92211.0,92208.0,0.00219803]
[1763645523748,0.010856,92209.0,92206.0,0.00040454]
[1763645523940,0.0108573,92199.0,92168.0,1.5]
[1763645524141,0.00016271,92193.0,92169.0,0.00219803]
[1763645524543,0.00016271,92193.0,92171.0,0.0108605]
[1763645524744,0.08384,92236.0,92192.0,0.00219803]
[1763645525042,0.0542703,92227.0,92192.0,0.00219803]
[1763645525233,0.33834844,92230.0,92192.0,0.00219803]
[1763645525433,0.0108579,92193.0,92192.0,0.00219803]
[1763645525636,0.0108596,92179.0,92169.0,0.001]
[1763645525841,9.924e-05,92178.0,92173.0,0.0108602]
[1763645526144,0.0108534,92232.0,92175.0,0.0108601]
[1763645526145,0.00016271,92183.0,92175.0,0.0108601]
[1763645526344,0.00016271,92188.0,92176.0,0.00219803]
[1763645526543,0.0108602,92174.0,92173.0,0.00016271]
[1763645526745,0.0108602,92174.0,92088.0,0.0543512]
[1763645526931,0.33834844,92160.0,92089.0,1.5]
[1763645527138,0.0108651,92133.0,92096.0,0.0108693]
[1763645527334,0.0108667,92119.0,92097.0,0.00219803]
[1763645527544,0.33834844,92120.0,92076.0,0.0108716]
[1763645527744,0.33834844,92120.0,92077.0,0.00219803]
[1763645527745,0.0108698,92093.0,92077.0,0.00219803]
[1763645528058,0.0108698,92093.0,92047.0,1.5]
[1763645528059,0.00011426,92092.0,92047.0,1.5]
[1763645528344,0.0108712,92081.0,92048.0,0.00219803]
[1763645528546,0.0001629,92079.0,92048.0,0.00219803]
[1763645528736,0.0108723,92072.0,92048.0,0.00219803]
[1763645529045,0.0108741,92056.0,92048.0,0.00219803]
[1763645529244,0.0108754,92046.0,92028.0,0.00012706]
[1763645529444,9.63e-05,92045.0,92028.0,0.00232509]
[1763645529747,0.00011362,92044.0,92028.0,0.00232509]
[1763645532036,0.00111362,92044.0,92028.0,0.00232509]
[1763645532239,0.0108765,92036.0,92028.0,0.00012706]
[1763645532543,0.00011686,92035.0,92028.0,0.00232509]
[1763645532745,0.00011686,92035.0,92029.0,0.00219803]
[1763645532949,0.001,92044.0,92029.0,0.00219803]
[1763645533332,9.468e-05,92043.0,92029.0,0.00219803]
[1763645533745,2.9e-06,92046.0,92036.0,0.0108764]
[1763645533944,0.33834844,92100.0,92045.0,0.00219803]
[1763645534151,0.010869,92100.0,92054.0,0.0108742]
[1763645534335,0.01388,92109.0,92055.0,0.00219803]
[1763645534534,0.0543118,92156.0,92057.0,0.05437]
[1763645534535,0.06976,92130.0,92057.0,0.05437]
[1763645534850,0.06976,92130.0,92044.0,0.0543776]
[1763645534851,0.0108661,92124.0,92081.0,0.0108711]
[1763645535048,0.00011089,92123.0,92096.0,0.0108693]
[1763645535245,0.00011089,92123.0,92122.0,0.00219803]
[1763645535949,0.0108568,92203.0,92130.0,0.0108653]
[1763645536245,0.11284,92196.0,92131.0,0.00219803]
[1763645536638,0.0108613,92165.0,92131.0,0.00219803]
[1763645536946,0.0001628,92157.0,92139.0,0.0001628]
[1763645537145,0.33834844,92250.0,92140.0,0.34054647]
[1763645537346,0.0108559,92211.0,92162.0,0.0108616]
[1763645537539,0.0542694,92228.0,92163.0,1.50219803]
[1763645537740,0.0108567,92204.0,92164.0,0.0108613]
[1763645537950,0.0108567,92204.0,92165.0,0.00219803]
[1763645538146,0.09144,92216.0,92165.0,0.00219803]
[1763645538353,0.0001627,92194.0,92175.0,0.0001627]
[1763645538651,0.0108603,92174.0,92131.0,0.0108651]
[1763645538838,0.0108594,92181.0,92131.0,0.00219803]
[1763645539039,0.33834844,92220.0,92131.0,0.00219803]
[1763645539348,0.0108597,92179.0,92138.0,0.0108643]
[1763645539547,0.113,92227.0,92132.0,1.5]
[1763645539548,0.0108568,92203.0,92141.0,0.0543205]
[1763645539739,0.0001627,92181.0,92163.0,0.0001627]
[1763645539947,0.0001627,92181.0,92164.0,0.00219803]
[1763645540250,0.0001627,92181.0,92164.0,0.01305933]
[1763645540649,0.0001627,92181.0,92165.0,0.0108612]
[1763645540843,0.0001627,92181.0,92166.0,0.00219803]
[1763645541146,0.0001627,92181.0,92163.0,0.0001627]
[1763645541354,0.0001627,92181.0,92164.0,0.00219803]
[1763645541557,0.0108607,92170.0,92164.0,0.00219803]
[1763645541849,0.0108613,92165.0,92163.0,0.0001627]
[1763645542152,0.0108631,92149.0,92110.0,0.0108676]
[1763645542347,0.0108631,92149.0,92080.0,0.39270444]
[1763645542348,0.0108649,92135.0,92111.0,0.00219803]
[1763645542648,0.0108617,92162.0,92111.0,0.00219803]
[1763645542850,0.001,92170.0,92111.0,0.00219803]
[1763645543048,0.00016281,92150.0,92131.0,0.00016281]
[1763645543350,0.00016281,92150.0,92149.0,0.00219803]
[1763645544142,0.0108632,92149.0,92131.0,0.00016281]
[1763645544339,0.00016281,92150.0,92132.0,0.00219803]
[1763645544540,0.0108648,92135.0,92131.0,0.00016281]
[1763645544860,0.33851125,92150.0,92091.0,0.01087]
[1763645545151,0.0108623,92156.0,92122.0,0.0108663]
[1763645545347,0.0108633,92148.0,92123.0,0.00219803]
[1763645545746,0.00016281,92145.0,92131.0,0.0108652]
[1763645545947,0.00016281,92145.0,92132.0,0.00219803]
[1763645546651,0.001,92148.0,92132.0,0.40219803]
[1763645546856,0.0108599,92177.0,92144.0,0.0108636]
[1763645547056,0.0108599,92177.0,92108.0,0.0543394]
[1763645547057,0.0542872,92198.0,92145.0,0.00219803]
[1763645547353,0.0651341,92213.0,92145.0,0.00219803]
[1763645547354,0.33834844,92210.0,92145.0,0.00219803]
[1763645547557,0.0108601,92175.0,92145.0,0.00219803]
[1763645547749,0.00016272,92187.0,92168.0,0.00016272]
[1763645548056,0.0108623,92156.0,92145.0,0.00219803]
[1763645548261,0.0108521,92243.0,92156.0,0.0108622]
[1763645548553,0.0108521,92243.0,92114.0,0.0108672]
[1763645548554,0.010862,92159.0,92157.0,0.00219803]
[1763645548753,0.33834844,92180.0,92083.0,0.0108708]
[1763645548754,0.0108638,92144.0,92083.0,0.0108708]
[1763645548958,0.0108639,92143.0,92103.0,0.01306653]
[1763645549166,0.0108658,92127.0,92103.0,0.00219803]
[1763645549348,0.00016281,92132.0,92108.0,0.0108678]
[1763645549655,0.00016281,92132.0,92109.0,0.00219803]
[1763645550163,0.00016281,92132.0,92124.0,0.010866]
[1763645550357,0.00016281,92132.0,92110.0,1.5]
[1763645550358,0.0108594,92181.0,92151.0,0.0108628]
[1763645550558,0.33834844,92230.0,92152.0,0.01306073]
[1763645550765,0.0114945,92223.0,92192.0,0.0108579]
[1763645551056,0.00064,92223.0,92198.0,0.0108572]
[1763645551257,0.00064,92223.0,92199.0,0.00219803]
[1763645551557,0.00016271,92220.0,92202.0,0.00016271]
[1763645551748,0.00016271,92220.0,92203.0,0.00219803]
[1763645551946,0.0108565,92206.0,92202.0,0.00016271]
[1763645552158,0.00016271,92220.0,92203.0,0.00219803]
[1763645552751,0.0108566,92205.0,92202.0,0.00016271]
[1763645553062,0.01101751,92220.0,92129.0,0.0651925]
[1763645553063,0.0108569,92203.0,92177.0,0.0108597]
[1763645553257,0.0108587,92187.0,92178.0,0.00219803]
[1763645553458,0.001,92220.0,92178.0,0.00219803]
[1763645553651,0.0108586,92188.0,92178.0,0.00219803]
[1763645553854,0.00016271,92192.0,92178.0,0.00219803]
[1763645554455,0.00016271,92192.0,92152.0,0.0108627]
[1763645554661,0.0108595,92180.0,92154.0,0.0108624]
[1763645554961,0.00016271,92181.0,92162.0,0.0108616]
[1763645555159,0.0108595,92180.0,92163.0,0.00219803]
[1763645555362,0.01102211,92181.0,92163.0,0.00219803]
[1763645555553,0.00016271,92181.0,92163.0,0.00219803]
[1763645555958,0.0108599,92177.0,92163.0,0.00219803]
[1763645556152,0.00016271,92181.0,92163.0,0.00319803]
[1763645556473,0.33834844,92250.0,92163.0,0.00319803]
[1763645556660,0.0542535,92255.0,92175.0,0.01086]
[1763645556959,0.0542535,92255.0,92163.0,0.05650543]
[1763645556960,0.0108514,92249.0,92176.0,0.00219803]
[1763645557259,0.28268831,92230.0,92176.0,0.00219803]
[1763645557459,0.00016271,92212.0,92176.0,0.00219803]
[1763645557760,0.00016271,92212.0,92194.0,0.00016271]
[1763645557954,0.0108576,92196.0,92195.0,0.00219803]
[1763645558151,0.0108576,92196.0,92194.0,0.00016271]
[1763645558446,0.0108578,92195.0,92190.0,0.01624]
[1763645558651,0.0108578,92195.0,92190.0,0.01843803]
[1763645558851,0.0108615,92163.0,92160.0,0.01624]
[1763645559049,0.0108603,92174.0,92160.0,0.01843803]
[1763645559368,0.28268831,92180.0,92112.0,0.0108675]
[1763645559369,0.0543023,92172.0,92112.0,0.0108675]
[1763645559564,0.19820831,92150.0,92131.0,0.00219803]
[1763645559755,0.001,92195.0,92140.0,0.28268831]
[1763645560060,0.0108585,92188.0,92160.0,0.0108618]
[1763645560260,0.29806831,92190.0,92161.0,0.00219803]
[1763645560464,0.01538,92190.0,92161.0,0.00219803]
[1763645560671,0.01538,92190.0,92167.0,0.0108609]
[1763645560856,0.00016271,92185.0,92168.0,0.00219803]
[1763645561357,0.00016271,92185.0,92182.0,0.0108592]
[1763645561554,0.001,92195.0,92194.0,0.0108578]
[1763645561865,0.0108559,92211.0,92194.0,0.00219803]
[1763645562057,0.29806831,92220.0,92194.0,0.00219803]
[1763645562258,0.0108573,92199.0,92194.0,0.00219803]
[1763645562459,0.01538,92190.0,92187.0,0.00016271]
[1763645562662,0.01538,92190.0,92188.0,0.00219803]
[1763645563261,0.01538,92190.0,92189.0,0.00219803]
[1763645563462,0.01538,92190.0,92179.0,0.00016271]
[1763645563664,0.01538,92190.0,92180.0,0.00219803]
[1763645563957,0.0108588,92186.0,92180.0,0.00219803]
[1763645564160,0.0108595,92180.0,92179.0,0.00016271]
[1763645564361,0.0108595,92180.0,92122.0,0.0108662]
[1763645564555,0.0108595,92180.0,92110.0,1.78268831]
[1763645564556,0.01538,92162.0,92139.0,0.0108642]
[1763645564859,0.01538,92133.0,92110.0,1.5]
[1763645565066,0.01538,92133.0,92115.0,0.00219803]
[1763645565767,0.0001628,92133.0,92129.0,0.0108654]
[1763645565963,0.0001628,92133.0,92132.0,0.00219803]
[1763645566368,0.01538,92162.0,92138.0,0.0108643]
[1763645566669,0.01538,92162.0,92139.0,0.00219803]
[1763645566861,0.01538,92162.0,92140.0,0.0108642]
[1763645567066,0.01538,92162.0,92161.0,0.00219803]
[1763645567262,0.01538,92162.0,92152.0,2.8e-06]
[1763645567465,0.01538,92162.0,92117.0,0.00219803]
[1763645567654,0.01538,92162.0,92126.0,0.0108658]
[1763645567857,0.01538,92130.0,92127.0,0.00219803]
[1763645568568,0.01538,92130.0,92128.0,0.0108656]
[1763645568758,0.01538,92130.0,92129.0,0.00219803]
[1763645569565,0.0001628,92138.0,92129.0,0.00219803]
[1763645569566,0.0001628,92138.0,92134.0,0.0108648]
[1763645569763,0.01538,92162.0,92142.0,0.0108639]
[1763645570063,0.01538,92162.0,92161.0,0.00219803]
[1763645570259,0.01538,92162.0,92112.0,1.5]
[1763645570461,0.01538,92162.0,92149.0,0.010863]
[1763645570659,0.01538,92162.0,92161.0,0.00219803]
[1763645572262,0.01538,92148.0,92146.0,0.0001628]
[1763645572466,0.01538,92162.0,92147.0,0.00219803]
[1763645572762,0.01638,92162.0,92152.0,0.0108627]
[1763645572963,0.001,92162.0,92161.0,0.00219803]
[1763645573473,0.01538,92190.0,92187.0,0.0108586]
[1763645573775,0.01538,92190.0,92189.0,0.00219803]
[1763645574273,0.0108593,92182.0,92133.0,0.0108649]
[1763645574474,0.0108593,92182.0,92129.0,0.0108654]
[1763645574475,0.00016271,92174.0,92156.0,0.00016271]
[1763645574773,0.0108607,92170.0,92157.0,0.00219803]
[1763645575074,0.00016271,92174.0,92157.0,0.00219803]
[1763645575970,0.0108612,92166.0,92157.0,0.00219803]
[1763645576567,0.00016271,92174.0,92157.0,0.00219803]
[1763645576978,0.0108609,92169.0,92157.0,0.00219803]
[1763645577163,0.00016271,92174.0,92157.0,0.00219803]
[1763645577370,0.010861,92168.0,92157.0,0.00219803]
[1763645577568,0.0108614,92164.0,92157.0,0.00219803]
[1763645577770,0.0108607,92170.0,92157.0,0.00219803]
[1763645578073,0.00016271,92174.0,92157.0,0.00219803]
[1763645578779,0.00016271,92174.0,92171.0,0.0108605]
[1763645578981,0.00016271,92174.0,92173.0,0.00219803]
[1763645580667,0.0108603,92173.0,92171.0,0.001]
[1763645580874,0.0108603,92173.0,92156.0,0.00016271]
[1763645580875,0.0108622,92158.0,92156.0,0.00016271]
[1763645581070,0.01538,92144.0,92106.0,0.0108681]
[1763645581278,0.01538,92144.0,92066.0,0.0108728]
[1763645581279,0.01538,92118.0,92113.0,0.00219803]
[1763645581468,0.01538,92144.0,92113.0,0.00219803]
[1763645581663,0.01538,92144.0,92114.0,1.5]
[1763645581875,0.0108645,92138.0,92115.0,0.00219803]
[1763645582172,0.01538,92176.0,92120.0,0.28268831]
[1763645582371,0.01538,92190.0,92114.0,1.5]
[1763645582372,0.01538,92190.0,92146.0,0.0108634]
[1763645582681,0.010859,92185.0,92147.0,0.00219803]
[1763645582972,0.01538,92190.0,92147.0,0.00219803]
[1763645583191,0.01942,92176.0,92159.0,0.00016282]
[1763645583369,0.01942,92176.0,92160.0,0.00219803]
[1763645583566,0.01942,92176.0,92159.0,0.00016282]
[1763645583779,0.0108635,92146.0,92115.0,0.002]
[1763645583981,0.0108646,92137.0,92116.0,0.00219803]
[1763645584166,0.0108667,92119.0,92116.0,0.00219803]
[1763645584476,0.01942,92120.0,92116.0,0.00219803]
[1763645584672,0.01942,92092.0,92050.0,0.00999999]
[1763645584876,0.01942,92064.0,92016.0,0.25426912]
[1763645585079,0.00219803,92063.0,92046.0,0.00043452]
[1763645585275,0.00219803,92063.0,92062.0,0.00073267]
[1763645585471,0.01942,92092.0,92062.0,0.00073267]
[1763645585676,0.00219803,92092.0,92083.0,0.0108708]
[1763645585878,0.00219803,92092.0,92091.0,0.00073267]
[1763645586265,0.0543068,92165.0,92091.0,0.40073267]
[1763645586471,0.00219803,92130.0,92111.0,0.0108676]
[1763645586694,0.00016292,92120.0,92112.0,0.00073267]
[1763645586875,0.0108681,92107.0,92102.0,0.00016292]
[1763645587075,0.00219803,92103.0,92102.0,0.00089559]
[1763645587472,0.00016292,92120.0,92102.0,0.00089559]
[1763645587671,0.00219803,92119.0,92102.0,0.00089559]
[1763645588473,0.0108668,92118.0,92102.0,0.00089559]
[1763645588675,0.00219803,92103.0,92102.0,0.00089559]
[1763645589078,0.00016292,92120.0,92107.0,0.010868]
[1763645589278,0.00219803,92119.0,92102.0,0.00016292]
[1763645589582,0.00319803,92119.0,92103.0,0.00073267]
[1763645589882,0.00219803,92119.0,92103.0,0.00073267]
[1763645590074,0.00219803,92119.0,92114.0,0.0108672]
[1763645590275,0.00219803,92119.0,92118.0,0.00073267]
[1763645591477,0.00219803,92119.0,92103.0,0.001]
[1763645591781,0.0108672,92115.0,92104.0,0.00073267]
[1763645592088,0.0108684,92104.0,92103.0,0.001]
[1763645592268,0.00219803,92104.0,92103.0,0.00073267]
[1763645592471,0.00219803,92104.0,92102.0,0.00016292]
[1763645592671,0.0108689,92101.0,92066.0,0.00010598]
[1763645592870,0.0108691,92099.0,92067.0,0.00073267]
[1763645593074,0.00219803,92098.0,92067.0,0.00073267]
[1763645593284,0.01306723,92098.0,92085.0,0.0108706]
[1763645593579,0.01942,92130.0,92086.0,0.00073267]
[1763645593780,0.00219803,92119.0,92089.0,0.0108701]
[1763645593991,0.00219803,92119.0,92090.0,0.00073267]
[1763645594475,0.00219803,92119.0,92111.0,0.0108675]
[1763645594674,0.00219803,92119.0,92060.0,0.28268831]
[1763645594874,0.00016281,92102.0,92087.0,0.00073267]
[1763645595074,0.00219803,92101.0,92098.0,0.010869]
[1763645595381,0.00219803,92101.0,92100.0,0.00073267]
[1763645596180,0.00219803,92101.0,92087.0,0.001]
[1763645596378,0.0108694,92097.0,92088.0,0.00073267]
[1763645596574,0.00219803,92089.0,92088.0,0.00073267]
[1763645596776,0.0108708,92084.0,92047.0,0.0108751]
[1763645596975,0.0108708,92084.0,92018.0,0.0108785]
[1763645596976,0.00219803,92067.0,92043.0,0.0108756]
[1763645597183,0.0108749,92050.0,92047.0,0.00073267]
[1763645597385,0.0108752,92047.0,92023.0,0.0108779]
[1763645597578,0.00219803,92047.0,92046.0,0.00100427]
[1763645598086,0.0108756,92044.0,92037.0,0.00016291]
[1763645598388,0.00010444,92047.0,92038.0,0.00073267]
[1763645598685,0.00219803,92039.0,92038.0,0.00073267]
[1763645598885,4.44e-06,92047.0,92046.0,0.0108753]
[1763645599087,0.01942,92092.0,92069.0,0.0108725]
[1763645599385,0.0108701,92090.0,92088.0,0.001]
[1763645599593,0.00219803,92089.0,92088.0,0.00173267]
[1763645599787,0.00219803,92089.0,92088.0,0.00073267]
[1763645599977,0.010872,92074.0,92052.0,0.0108745]
[1763645600184,0.00016291,92072.0,92054.0,0.00016291]
[1763645600379,0.01942,92064.0,92055.0,0.00073267]
[1763645600585,0.00219803,92056.0,92055.0,0.00073267]
[1763645601385,0.01307213,92056.0,92054.0,0.00016291]
[1763645601580,0.00219803,92056.0,92000.0,0.0108807]
[1763645601783,0.0108748,92051.0,92014.0,0.010879]
[1763645601984,0.00219803,92050.0,92024.0,0.0108778]
[1763645602177,0.00219803,92050.0,92045.0,0.0108753]
[1763645602375,0.00219803,92050.0,92049.0,0.00073267]
[1763645602985,0.0108783,92021.0,92000.0,0.0108806]
[1763645603184,0.0108792,92013.0,92001.0,0.00073267]
[1763645603382,0.01942,92036.0,92001.0,0.00073267]
[1763645603383,0.00219803,92012.0,92009.0,0.0108796]
[1763645603688,0.00219803,92012.0,92010.0,0.00073267]
[1763645603887,0.00219803,92012.0,92011.0,0.0108794]
[1763645604090,0.00219803,92012.0,92011.0,0.01161207]
[1763645604288,0.00219803,92012.0,92011.0,0.00073267]
[1763645604787,0.00219803,92012.0,92011.0,0.01161207]
[1763645605387,0.000163,92021.0,92020.0,0.0108783]
[1763645605582,0.00236103,92021.0,92020.0,0.00073267]
[1763645605985,0.00236103,92021.0,92002.0,0.000163]
[1763645606190,0.0108799,92007.0,92003.0,0.00073267]
[1763645606384,0.00219803,92004.0,92003.0,0.00073267]
[1763645606579,0.00219803,92004.0,92002.0,0.000163]
[1763645606580,0.0108804,92003.0,92002.0,0.000163]
[1763645606782,0.00219803,92003.0,92002.0,0.000163]
[1763645606982,0.00219803,92003.0,92002.0,0.00089567]
[1763645607387,0.00219803,92003.0,92002.0,0.000163]
[1763645607586,0.00219803,92003.0,92002.0,0.00089567]
[1763645607793,0.00219803,92003.0,92002.0,0.01177617]
[1763645607982,0.000163,92021.0,92010.0,0.0108795]
[1763645608192,0.01942,92016.0,92014.0,0.010879]
[1763645608389,0.02161803,92016.0,92015.0,0.00073267]
[1763645608783,0.000163,92021.0,92016.0,0.0108788]
[1763645608980,0.000163,92021.0,92020.0,0.00073267]
[1763645609385,0.0108719,92075.0,92020.0,0.40073267]
[1763645609579,0.01775,92043.0,92030.0,0.0108771]
[1763645609789,0.00219803,92042.0,92040.0,0.0108759]
[1763645609988,0.00219803,92042.0,92041.0,0.00073267]
[1763645610885,0.000163,92051.0,92050.0,0.0108748]
[1763645611091,0.00236103,92051.0,92050.0,0.00073267]
[1763645611292,0.01775,92040.0,92037.0,0.0108763]
[1763645611498,0.01775,92040.0,92039.0,0.0108761]
[1763645611793,0.000163,92051.0,92048.0,0.0108749]
[1763645612097,0.000163,92051.0,92050.0,0.00073267]
[1763645612404,0.01942,92064.0,92050.0,0.00073267]
[1763645612405,0.01942,92064.0,92063.0,0.0108733]
[1763645612592,0.054312,92156.0,92073.0,0.010872]
[1763645612593,0.01087,92091.0,92073.0,0.010872]
[1763645612782,0.0108705,92087.0,92074.0,0.00073267]
[1763645612983,0.00219803,92075.0,92074.0,0.00073267]
[1763645613582,0.01712,92066.0,92065.0,0.00016291]
[1763645613793,0.01712,92066.0,92020.0,0.28268831]
[1763645613794,0.01931803,92066.0,92025.0,0.0543884]
[1763645614090,0.01931803,92066.0,92026.0,0.00073267]
[1763645614286,0.01931803,92066.0,92059.0,0.0108737]
[1763645614490,0.01931803,92066.0,92065.0,0.00073267]
[1763645615289,0.01931803,92066.0,92065.0,0.01160567]
[1763645615699,0.01931803,92066.0,92065.0,0.00073267]
[1763645616195,0.00016291,92075.0,92074.0,0.010872]
[1763645616394,0.0108676,92111.0,92091.0,0.01087]